[Event "GER-ch Youth U10 2020"]
[Site "Willingen"]
[Date "2020.10.27"]
[Round "1.15"]
[White "Krstovic, Marko"]
[Black "Kamleiter, Noah"]
[Result "1-0"]
[ECO "E32"]
[WhiteElo "1443"]
[BlackElo "1573"]
[Annotator "NA RC"]
[PlyCount "147"]
[EventDate "2020.10.27"]
[EventType "swiss"]
[EventRounds "7"]
[EventCountry "GER"]
[SourceTitle "playchess.com"]
[Source "ChessBase"]
[SourceQuality "1"]
[TimeControl "40/4500+30:900+30"]

1. d4 {[%emt 0:00:00]} Nf6 {[%emt 0:00:00]} 2. c4 {[%emt 0:00:00]} e6 {[%emt 0:00:09]} 3. Nc3 {[%emt 0:00:00]} Bb4 {[%emt 0:00:47]} 4. Qc2 {[%emt 0:00:00]} b6 {[%emt 0:02:09]} 5. Nf3 {[%emt 0:00:00]} Bb7 {[%emt 0:01:19]} 6. a3 {[%emt 0:00:07]} Bxc3+ {[%emt 0:00:45]} 7. Qxc3 {[%emt 0:00:07]} d6 8. Bg5 {[%emt 0:00:36]} Nbd7 {[%emt 0:07:41]} 9. e3 {[%emt 0:00:13]} h6 {[%emt 0:04:13]} 10. Bh4 {[%emt 0:00:22]} O-O {[%emt 0:01:50]} 11. Be2 {[%emt 0:00:14]} Re8 {[%emt 0:02:30]} 12. O-O {[%emt 0:00:41]} Qc8 {[%emt 0:02:15]} 13. Nd2 {[%emt 0:00:44]} c5 {[%emt 0:00:16]} 14. dxc5 {[%emt 0:01:50]} Qxc5 {[%emt 0:02:38]} 15. f3 {[%emt 0:00:49]} d5 {[%emt 0:02:37]} 16. b3 {[%emt 0:02:31]} e5 {[%emt 0:05:58]} 17. Bf2 {[%emt 0:01:06]} Qd6 {[%emt 0:00:53]} 18. Rfe1 {[%emt 0:01:00]} Rac8 {[%emt 0:03:50]} 19. b4 {[%emt 0:02:05]} b5 {[%emt 0:01:52]} 20. c5 {[%emt 0:00:29]} Qc7 {[%emt 0:03:40]} 21. Qb3 {[%emt 0:02:47]} a5 {[%emt 0:01:53]} 22. Bg3 {[%emt 0:02:28]} Bc6 {[%emt 0:04:31]} 23. Kh1 {[%emt 0:04:49]} a4 {[%emt 0:04:38]} 24. Qb2 {[%emt 0:00:54]} Qd8 {[%emt 0:06:51]} 25. Rad1 {[%emt 0:01:59]} Nh5 {[%emt 0:01:36]} 26. Nf1 {[%emt 0:02:36]} Qg5 {[%emt 0:01:20]} 27. Qd2 {[%emt 0:04:24]} e4 {[%emt 0:12:04]} 28. f4 {[%emt 0:02:30]} Nxg3+ {[%emt 0:00:47]} 29. Nxg3 {[%emt 0:00:08]} Qg6 {[%emt 0:01:58]} 30. Bh5 {[%emt 0:00:53]} Qf6 {[%emt 0:01:37]} 31. Qd4 {[%emt 0:01:12]} Qe6 {[%emt 0:01:43]} 32. h3 {[%emt 0:00:50]} Qf6 {[%emt 0:01:23]} 33. Bg4 {[%emt 0:00:47]} Rcd8 {[%emt 0:02:53]} 34. Be2 {[%emt 0:00:54]} Qg6 {[%emt 0:01:03]} 35. Kh2 {[%emt 0:00:56]} Kh8 {[%emt 0:01:18]} 36. Bh5 {[%emt 0:00:19]} Qe6 {[%emt 0:00:27]} 37. Bg4 {[%emt 0:00:44]} Qe7 {[%emt 0:01:01]} 38. Nf5 Qf6 {[%emt 0:00:05]} 39. Qxf6 {[%emt 0:00:39]} Nxf6 {[%emt 0:00:13]} 40. Be2 {[%emt 0:00:19]} Kh7 {[%emt 0:01:26]} 41. Nd4 {[%emt 0:15:10]} Bb7 {[%emt 0:04:29]} 42. Bxb5 {[%emt 0:00:00]} Re7 {[%emt 0:00:27]} 43. Nc6 {[%emt 0:00:00]} Bxc6 {[%emt 0:00:16]} 44. Bxc6 {[%emt 0:00:00]} Ra7 {[%emt 0:00:01]} 45. b5 {[%emt 0:00:00]} Ra5 {[%emt 0:00:39]} 46. Rc1 {[%emt 0:00:00]} Rc8 {[%emt 0:00:21]} 47. Rb1 {[%emt 0:00:00]} Kg8 {[%emt 0:00:28]} 48. Rec1 {[%emt 0:00:00]} Kf8 {[%emt 0:00:35]} 49. b6 {[%emt 0:00:00]} Rxc6 {[%emt 0:00:05]} 50. b7 {[%emt 0:00:00]} Nd7 {[%emt 0:00:05]} 51. b8=Q+ {[%emt 0:00:00]} Nxb8 {[%emt 0:00:06]} 52. Rxb8+ {[%emt 0:00:00]} Ke7 {[%emt 0:00:07]} 53. Rb7+ {[%emt 0:00:00]} Ke6 {[%emt 0:00:22]} 54. Rb4 {[%emt 0:00:00]} Kd7 {[%emt 0:02:14]} 55. Rb7+ {[%emt 0:00:00]} Rc7 {[%emt 0:00:12]} 56. c6+ {[%emt 0:00:00]} Kd6 {[%emt 0:01:19]} 57. Rb4 {[%emt 0:00:00]} Rxc6 {[%emt 0:00:36]} 58. Rxc6+ {[%emt 0:00:00]} Kxc6 {[%emt 0:00:01]} 59. Kg3 {[%emt 0:00:00]} Kd6 {[%emt 0:00:44]} 60. Kg4 {[%emt 0:00:00]} Ra6 {[%emt 0:00:43]} 61. Kh5 {[%emt 0:00:00]} Ke6 {[%emt 0:00:54]} 62. g4 {[%emt 0:00:00]} Kf6 {[%emt 0:01:52]} 63. Rd4 {[%emt 0:00:00]} Ra5 {[%emt 0:00:18]} 64. h4 {[%emt 0:01:26]} Ra8 {[%emt 0:06:17]} 65. g5+ {[%emt 0:00:38]} Ke6 {[%emt 0:01:10]} 66. gxh6 {[%emt 0:00:14]} gxh6 67. Kxh6 {[%emt 0:00:30]} f5 {[%emt 0:01:40]} 68. Kg7 {[%emt 0:00:13]} Ra7+ {[%emt 0:00:53]} 69. Kg6 {[%emt 0:00:16]} Ra8 {[%emt 0:00:45]} 70. h5 {[%emt 0:00:10]} Rg8+ {[%emt 0:00:20]} 71. Kh7 {[%emt 0:00:07]} Kf7 {[%emt 0:01:22]} 72. h6 {[%emt 0:00:13]} Rg6 {[%emt 0:01:10]} 73. Rxd5 {[%emt 0:00:14]} Rg8 {[%emt 0:01:12]} 74. Rxf5+ {[%emt 0:00:11]} 1-0

[Event "GER-ch Youth U10 2020"]
[Site "Willingen"]
[Date "2020.10.27"]
[Round "1.16"]
[White "Aniol, Nico"]
[Black "Peglau, Paul David"]
[Result "1-0"]
[ECO "A13"]
[WhiteElo "1417"]
[BlackElo "1322"]
[Annotator "NA RC"]
[PlyCount "49"]
[EventDate "2020.10.27"]
[EventType "swiss"]
[EventRounds "7"]
[EventCountry "GER"]
[SourceTitle "playchess.com"]
[Source "ChessBase"]
[SourceQuality "1"]
[TimeControl "40/4500+30:900+30"]

1. c4 {[%emt 0:00:00]} e6 {[%emt 0:00:35]} 2. e4 {[%emt 0:00:52]} Nf6 {[%emt 0:02:45]} 3. Nc3 {[%emt 0:02:08]} Bb4 {[%emt 0:03:41]} 4. e5 {[%emt 0:01:27]} Bxc3 {[%emt 0:02:01]} 5. bxc3 {[%emt 0:01:54]} Ne4 {[%emt 0:01:11]} 6. d3 {[%emt 0:03:44]} Nc5 7. d4 {[%emt 0:02:53]} Ne4 {[%emt 0:08:45]} 8. Bd3 {[%emt 0:01:36]} d5 {[%emt 0:12:35]} 9. Qc2 {[%emt 0:03:20]} f5 {[%emt 0:06:07]} 10. Ba3 {[%emt 0:03:06]} Bd7 {[%emt 0:02:55]} 11. cxd5 {[%emt 0:01:39]} exd5 {[%emt 0:01:14]} 12. Nf3 {[%emt 0:01:31]} b6 {[%emt 0:09:46]} 13. c4 {[%emt 0:03:20]} Be6 {[%emt 0:04:00]} 14. Rc1 {[%emt 0:07:15]} c6 {[%emt 0:04:21]} 15. Nd2 {[%emt 0:05:04]} Nd7 {[%emt 0:06:52]} 16. O-O {[%emt 0:02:11]} Qg5 {[%emt 0:02:11]} 17. f4 {[%emt 0:01:53]} Qd8 {[%emt 0:02:59]} 18. cxd5 {[%emt 0:03:55]} cxd5 {[%emt 0:00:45]} 19. Bxe4 {[%emt 0:01:23]} dxe4 {[%emt 0:01:48]} 20. Qc6 {[%emt 0:00:18]} Bxa2 {[%emt 0:02:00]} 21. d5 {[%emt 0:00:51]} Bxd5 {[%emt 0:03:32]} 22. Qxd5 {[%emt 0:00:07]} Nf8 {[%emt 0:01:30]} 23. Bd6 {[%emt 0:02:03]} Rc8 {[%emt 0:01:39]} 24. e6 {[%emt 0:00:59]} Rxc1 {[%emt 0:01:10]} 25. Rxc1 {[%emt 0:00:24]} 1-0

[Event "GER-ch Youth U10 2020"]
[Site "Willingen"]
[Date "2020.10.27"]
[Round "1.17"]
[White "Deiringer, Julius"]
[Black "Kullmann, Theo"]
[Result "0-1"]
[ECO "C60"]
[WhiteElo "1332"]
[BlackElo "1632"]
[Annotator "NA RC"]
[PlyCount "66"]
[EventDate "2020.10.27"]
[EventType "swiss"]
[EventRounds "7"]
[EventCountry "GER"]
[SourceTitle "playchess.com"]
[Source "ChessBase"]
[SourceQuality "1"]
[TimeControl "40/4500+30:900+30"]

1. e4 {[%emt 0:00:00]} e5 {[%emt 0:00:00]} 2. Nf3 {[%emt 0:00:00]} Nc6 {[%emt 0:00:00]} 3. Bb5 {[%emt 0:00:00]} g6 {[%emt 0:00:07]} 4. O-O {[%emt 0:00:56]} Bg7 {[%emt 0:00:22]} 5. c3 {[%emt 0:00:53]} Nge7 {[%emt 0:01:13]} 6. d4 {[%emt 0:01:12]} exd4 {[%emt 0:02:14]} 7. cxd4 {[%emt 0:00:11]} d5 {[%emt 0:03:24]} 8. e5 {[%emt 0:01:43]} O-O {[%emt 0:00:47]} 9. Nc3 {[%emt 0:02:35]} Bg4 {[%emt 0:01:01]} 10. Be3 {[%emt 0:03:42]} Nf5 {[%emt 0:05:34]} 11. h3 {[%emt 0:00:38]} Bxf3 {[%emt 0:00:45]} 12. Qxf3 Ncxd4 13. Qxd5 {[%emt 0:03:47]} Qxd5 {[%emt 0:00:57]} 14. Nxd5 {[%emt 0:00:28]} Nxb5 {[%emt 0:00:55]} 15. Bc5 {[%emt 0:00:48]} Rfd8 {[%emt 0:01:03]} 16. Rad1 {[%emt 0:01:53]} Bxe5 {[%emt 0:02:45]} 17. g4 {[%emt 0:01:18]} Bd4 18. gxf5 Rxd5 {[%emt 0:06:34]} 19. Be7 {[%emt 0:02:25]} Rxf5 {[%emt 0:01:22]} 20. a4 {[%emt 0:02:03]} Re8 {[%emt 0:02:31]} 21. axb5 {[%emt 0:01:35]} Bxf2+ {[%emt 0:01:36]} 22. Rxf2 {[%emt 0:00:57]} Rxf2 {[%emt 0:01:13]} 23. Kxf2 Rxe7 24. Rd5 {[%emt 0:02:05]} Kg7 {[%emt 0:01:38]} 25. Kf3 {[%emt 0:01:48]} h6 {[%emt 0:01:23]} 26. h4 {[%emt 0:00:56]} f6 {[%emt 0:04:59]} 27. b4 {[%emt 0:02:49]} Kf7 {[%emt 0:01:32]} 28. Rc5 {[%emt 0:01:35]} Ke6 {[%emt 0:00:34]} 29. h5 {[%emt 0:01:58]} g5 {[%emt 0:00:34]} 30. Kg4 {[%emt 0:00:37]} Rd7 {[%emt 0:01:52]} 31. Rc4 {[%emt 0:03:40]} f5+ {[%emt 0:00:57]} 32. Kg3 {[%emt 0:00:48]} f4+ {[%emt 0:02:09]} 33. Kg4 {[%emt 0:03:28]} Rd3 {[%emt 0:00:20]} 0-1

[Event "GER-ch Youth U10 2020"]
[Site "Willingen"]
[Date "2020.10.27"]
[Round "1.18"]
[White "Zhang, Yibo"]
[Black "Wolff, Calvin"]
[Result "1-0"]
[ECO "C54"]
[WhiteElo "1299"]
[BlackElo "1219"]
[Annotator "NA RC"]
[PlyCount "83"]
[EventDate "2020.10.27"]
[EventType "swiss"]
[EventRounds "7"]
[EventCountry "GER"]
[SourceTitle "playchess.com"]
[Source "ChessBase"]
[SourceQuality "1"]
[TimeControl "40/4500+30:900+30"]

1. e4 {[%emt 0:00:00]} e5 {[%emt 0:00:00]} 2. Nf3 Nc6 {[%emt 0:00:32]} 3. Bc4 {[%emt 0:00:00]} Bc5 4. c3 {[%emt 0:00:21]} Nf6 {[%emt 0:01:31]} 5. d3 {[%emt 0:00:19]} d6 {[%emt 0:00:51]} 6. O-O {[%emt 0:00:24]} Bg4 {[%emt 0:05:48]} 7. Re1 {[%emt 0:00:56]} h6 {[%emt 0:02:56]} 8. Nbd2 {[%emt 0:00:27]} O-O {[%emt 0:01:06]} 9. Nf1 {[%emt 0:00:17]} Be6 {[%emt 0:00:38]} 10. Bb5 {[%emt 0:00:32]} Ng4 {[%emt 0:02:07]} 11. d4 {[%emt 0:01:22]} exd4 {[%emt 0:01:08]} 12. cxd4 {[%emt 0:02:19]} Bb4 {[%emt 0:02:31]} 13. Bd2 {[%emt 0:00:29]} Bxd2 {[%emt 0:00:32]} 14. Qxd2 {[%emt 0:01:20]} Bd7 {[%emt 0:03:47]} 15. h3 {[%emt 0:03:31]} Nf6 {[%emt 0:01:30]} 16. Bc4 {[%emt 0:04:31]} a6 17. a4 {[%emt 0:02:04]} b6 {[%emt 0:08:01]} 18. Rac1 {[%emt 0:00:58]} Na5 {[%emt 0:00:23]} 19. b3 {[%emt 0:07:05]} b5 20. Qxa5 bxc4 {[%emt 0:02:07]} 21. Rxc4 {[%emt 0:01:56]} Be6 {[%emt 0:01:43]} 22. d5 {[%emt 0:00:36]} Bd7 {[%emt 0:00:12]} 23. Qxc7 {[%emt 0:00:32]} Qxc7 {[%emt 0:00:43]} 24. Rxc7 {[%emt 0:00:13]} Rfc8 {[%emt 0:00:50]} 25. Rxc8+ {[%emt 0:01:29]} Rxc8 {[%emt 0:00:15]} 26. N1d2 {[%emt 0:03:59]} Nh5 {[%emt 0:03:24]} 27. e5 {[%emt 0:01:35]} dxe5 {[%emt 0:00:26]} 28. Nxe5 {[%emt 0:01:22]} Rc2 {[%emt 0:04:38]} 29. Ndc4 {[%emt 0:01:20]} Bc8 {[%emt 0:00:40]} 30. d6 {[%emt 0:00:51]} Nf6 {[%emt 0:00:59]} 31. Rd1 {[%emt 0:00:01]} Bd7 {[%emt 0:01:15]} 32. Nb6 {[%emt 0:00:01]} Be6 {[%emt 0:04:28]} 33. d7 {[%emt 0:00:29]} Nxd7 {[%emt 0:00:06]} 34. Nexd7 {[%emt 0:03:21]} Bxb3 {[%emt 0:00:23]} 35. Rd3 {[%emt 0:05:06]} Be6 {[%emt 0:00:19]} 36. Rd4 {[%emt 0:02:59]} Rb2 {[%emt 0:01:45]} 37. a5 {[%emt 0:05:17]} Rb5 {[%emt 0:00:28]} 38. Ra4 {[%emt 0:00:50]} Rg5 {[%emt 0:04:07]} 39. Kh2 {[%emt 0:01:52]} Bb3 {[%emt 0:01:05]} 40. Ra3 {[%emt 0:00:24]} Be6 {[%emt 0:00:36]} 41. Nb8 {[%emt 0:15:26]} Rf5 {[%emt 0:16:07]} 42. Kg1 {[%emt 0:00:01]} 1-0

[Event "GER-ch Youth U10 2020"]
[Site "Willingen"]
[Date "2020.10.27"]
[Round "1.19"]
[White "Aweh, Mads"]
[Black "Braun, Julian"]
[Result "0-1"]
[ECO "C54"]
[WhiteElo "1328"]
[BlackElo "1441"]
[Annotator "NA RC"]
[PlyCount "108"]
[EventDate "2020.10.27"]
[EventType "swiss"]
[EventRounds "7"]
[EventCountry "GER"]
[SourceTitle "playchess.com"]
[Source "ChessBase"]
[SourceQuality "1"]
[TimeControl "40/4500+30:900+30"]

1. e4 {[%emt 0:00:00]} e5 {[%emt 0:00:00]} 2. Nf3 {[%emt 0:00:42]} Nc6 {[%emt 0:00:00]} 3. Bc4 {[%emt 0:00:28]} Bc5 {[%emt 0:00:00]} 4. c3 {[%emt 0:00:19]} Nf6 {[%emt 0:00:00]} 5. d4 {[%emt 0:00:37]} exd4 {[%emt 0:01:36]} 6. cxd4 Bb4+ 7. Bd2 {[%emt 0:01:09]} Bxd2+ {[%emt 0:00:38]} 8. Nbxd2 {[%emt 0:00:23]} d5 {[%emt 0:00:05]} 9. exd5 {[%emt 0:01:01]} Nxd5 {[%emt 0:00:20]} 10. Qb3 {[%emt 0:00:26]} Na5 {[%emt 0:00:22]} 11. Qa4+ {[%emt 0:00:53]} c6 {[%emt 0:00:09]} 12. Bd3 {[%emt 0:00:34]} O-O {[%emt 0:01:43]} 13. O-O {[%emt 0:00:50]} Be6 {[%emt 0:02:42]} 14. Qc2 {[%emt 0:06:26]} h6 {[%emt 0:00:49]} 15. a3 {[%emt 0:00:52]} c5 {[%emt 0:07:53]} 16. dxc5 {[%emt 0:01:36]} Nf4 {[%emt 0:01:14]} 17. Bf5 {[%emt 0:04:43]} Ne2+ {[%emt 0:10:29]} 18. Kh1 {[%emt 0:00:21]} Bxf5 {[%emt 0:06:30]} 19. Qxf5 {[%emt 0:00:30]} Nd4 {[%emt 0:02:07]} 20. Qg4 {[%emt 0:02:43]} Nxf3 {[%emt 0:01:56]} 21. Nxf3 {[%emt 0:00:23]} Nb3 {[%emt 0:01:08]} 22. Rad1 {[%emt 0:00:33]} Qc7 {[%emt 0:06:19]} 23. Qb4 {[%emt 0:01:26]} Nxc5 {[%emt 0:01:18]} 24. Rc1 {[%emt 0:00:44]} b6 {[%emt 0:01:24]} 25. Nd4 {[%emt 0:01:14]} Qe5 {[%emt 0:07:17]} 26. Nf3 {[%emt 0:02:40]} Qf6 {[%emt 0:01:46]} 27. Qd4 {[%emt 0:09:13]} Qxd4 {[%emt 0:05:22]} 28. Nxd4 {[%emt 0:00:11]} Rad8 {[%emt 0:01:28]} 29. Nc6 {[%emt 0:02:54]} Rd2 {[%emt 0:03:52]} 30. b4 {[%emt 0:08:27]} Nd3 {[%emt 0:01:06]} 31. Rc3 {[%emt 0:01:27]} Nxf2+ {[%emt 0:07:26]} 32. Kg1 {[%emt 0:00:28]} Ne4 {[%emt 0:00:54]} 33. Re3 {[%emt 0:01:53]} Nd6 {[%emt 0:02:57]} 34. Nxa7 {[%emt 0:03:03]} Ra8 {[%emt 0:02:08]} 35. Re7 {[%emt 0:03:15]} Kf8 {[%emt 0:03:59]} 36. Rfe1 {[%emt 0:03:08]} Rd1 {[%emt 0:01:49]} 37. Rxd1 {[%emt 0:01:13]} Kxe7 {[%emt 0:00:04]} 38. Nc6+ {[%emt 0:01:28]} Kd7 {[%emt 0:00:10]} 39. Ne5+ {[%emt 0:00:54]} Kc7 {[%emt 0:01:04]} 40. Rc1+ {[%emt 0:01:36]} Kb7 {[%emt 0:00:31]} 41. Rc3 {[%emt 0:15:51]} f6 {[%emt 0:16:13]} 42. Rd3 {[%emt 0:01:03]} fxe5 {[%emt 0:00:43]} 43. Rxd6 {[%emt 0:00:16]} Rxa3 {[%emt 0:01:47]} 44. Rd7+ {[%emt 0:00:24]} Kc6 {[%emt 0:00:05]} 45. Rxg7 {[%emt 0:00:13]} Kb5 {[%emt 0:00:50]} 46. Re7 {[%emt 0:00:20]} Kxb4 {[%emt 0:00:13]} 47. Rxe5 {[%emt 0:00:08]} Rc3 {[%emt 0:00:38]} 48. Kf2 {[%emt 0:00:54]} b5 {[%emt 0:00:30]} 49. Rh5 {[%emt 0:00:35]} Rc6 {[%emt 0:00:53]} 50. Rh3 {[%emt 0:01:22]} Ka4 {[%emt 0:00:24]} 51. g4 {[%emt 0:01:11]} b4 {[%emt 0:00:07]} 52. Ke1 {[%emt 0:00:42]} b3 {[%emt 0:00:12]} 53. Rxb3 {[%emt 0:00:44]} Kxb3 {[%emt 0:00:07]} 54. Kf2 {[%emt 0:00:08]} Rc3 {[%emt 0:00:48]} 0-1

[Event "GER-ch Youth U10 2020"]
[Site "Willingen"]
[Date "2020.10.27"]
[Round "1.20"]
[White "Kullmann, Max"]
[Black "Mohammadzadeh, Daris"]
[Result "1-0"]
[ECO "D10"]
[WhiteElo "1375"]
[BlackElo "1311"]
[Annotator "NA RC"]
[PlyCount "79"]
[EventDate "2020.10.27"]
[EventType "swiss"]
[EventRounds "7"]
[EventCountry "GER"]
[SourceTitle "playchess.com"]
[Source "ChessBase"]
[SourceQuality "1"]
[TimeControl "40/4500+30:900+30"]

1. d4 {[%emt 0:00:00]} d5 {[%emt 0:00:00]} 2. c4 {[%emt 0:00:00]} c6 {[%emt 0:00:00]} 3. Bf4 {[%emt 0:00:22]} dxc4 {[%emt 0:00:19]} 4. e3 {[%emt 0:00:38]} b5 {[%emt 0:00:19]} 5. a4 {[%emt 0:02:18]} Qb6 {[%emt 0:01:28]} 6. Nc3 {[%emt 0:08:27]} e6 {[%emt 0:02:00]} 7. d5 {[%emt 0:09:24]} exd5 {[%emt 0:04:42]} 8. axb5 {[%emt 0:01:11]} Bb4 {[%emt 0:01:47]} 9. bxc6 {[%emt 0:02:00]} Qxc6 {[%emt 0:01:01]} 10. Qd4 {[%emt 0:03:49]} Qf6 {[%emt 0:03:40]} 11. Be5 {[%emt 0:02:47]} Qg5 {[%emt 0:05:08]} 12. Nf3 {[%emt 0:05:20]} Nc6 {[%emt 0:02:24]} 13. Nxg5 {[%emt 0:01:43]} Nxd4 {[%emt 0:00:15]} 14. Bxd4 {[%emt 0:00:08]} f6 {[%emt 0:00:50]} 15. Nh3 {[%emt 0:02:57]} Ne7 {[%emt 0:02:16]} 16. Rxa7 {[%emt 0:02:37]} Rxa7 {[%emt 0:03:30]} 17. Bxa7 {[%emt 0:00:14]} Nc6 {[%emt 0:01:41]} 18. Bd4 {[%emt 0:00:56]} Nxd4 {[%emt 0:01:07]} 19. exd4 {[%emt 0:00:11]} O-O {[%emt 0:00:41]} 20. Nf4 {[%emt 0:02:28]} Re8+ {[%emt 0:02:24]} 21. Be2 {[%emt 0:01:01]} Bb7 {[%emt 0:00:42]} 22. f3 {[%emt 0:04:45]} Re3 {[%emt 0:02:06]} 23. Kf2 {[%emt 0:01:07]} Re8 {[%emt 0:01:10]} 24. Nfxd5 {[%emt 0:02:03]} Bxd5 {[%emt 0:01:59]} 25. Nxd5 {[%emt 0:00:11]} Ba5 {[%emt 0:00:35]} 26. Bxc4 {[%emt 0:00:19]} Rb8 {[%emt 0:00:50]} 27. b4 {[%emt 0:00:52]} Bb6 {[%emt 0:01:44]} 28. Nxb6+ {[%emt 0:00:00]} Kh8 {[%emt 0:00:00]} 29. Ra1 {[%emt 0:00:00]} g5 {[%emt 0:00:39]} 30. Ra8 {[%emt 0:00:00]} Rxa8 {[%emt 0:00:01]} 31. Nxa8 {[%emt 0:00:00]} Kg7 {[%emt 0:00:31]} 32. b5 {[%emt 0:00:00]} h6 {[%emt 0:01:09]} 33. b6 {[%emt 0:00:00]} Kg6 {[%emt 0:00:45]} 34. b7 {[%emt 0:00:00]} g4 {[%emt 0:00:07]} 35. fxg4 {[%emt 0:00:39]} Kg5 36. b8=Q Kh4 {[%emt 0:00:27]} 37. g3+ {[%emt 0:01:01]} Kh3 {[%emt 0:00:17]} 38. Qf4 {[%emt 0:00:35]} f5 {[%emt 0:00:30]} 39. gxf5 {[%emt 0:01:24]} h5 {[%emt 0:00:22]} 40. Qh4# {[%emt 0:00:44]} 1-0

[Event "GER-ch Youth U10 2020"]
[Site "Willingen"]
[Date "2020.10.27"]
[Round "1.21"]
[White "Ahlers, Quentin"]
[Black "Uyar, Levin"]
[Result "0-1"]
[ECO "C50"]
[WhiteElo "1425"]
[BlackElo "1471"]
[Annotator "NA RC"]
[PlyCount "52"]
[EventDate "2020.10.27"]
[EventType "swiss"]
[EventRounds "7"]
[EventCountry "GER"]
[SourceTitle "playchess.com"]
[Source "ChessBase"]
[SourceQuality "1"]
[TimeControl "40/4500+30:900+30"]

1. e4 {[%emt 0:00:00]} e5 {[%emt 0:00:00]} 2. Nf3 {[%emt 0:00:00]} Nc6 {[%emt 0:00:00]} 3. Bc4 {[%emt 0:00:00]} Nf6 {[%emt 0:00:00]} 4. d3 {[%emt 0:00:06]} Bc5 {[%emt 0:00:00]} 5. c3 {[%emt 0:00:44]} d6 {[%emt 0:00:21]} 6. a4 {[%emt 0:00:19]} a5 {[%emt 0:00:46]} 7. O-O {[%emt 0:01:10]} O-O {[%emt 0:00:10]} 8. Re1 {[%emt 0:00:45]} Be6 {[%emt 0:00:24]} 9. Bxe6 {[%emt 0:00:55]} fxe6 {[%emt 0:00:14]} 10. h3 {[%emt 0:01:07]} Qd7 {[%emt 0:01:01]} 11. d4 {[%emt 0:09:09]} Bb6 {[%emt 0:04:20]} 12. dxe5 {[%emt 0:02:36]} Nxe5 {[%emt 0:01:56]} 13. Nxe5 {[%emt 0:04:45]} dxe5 {[%emt 0:01:24]} 14. Qc2 {[%emt 0:03:41]} Rad8 {[%emt 0:01:54]} 15. Bg5 {[%emt 0:02:42]} Qd6 {[%emt 0:11:20]} 16. Nd2 {[%emt 0:03:53]} Bxf2+ {[%emt 0:00:39]} 17. Kxf2 {[%emt 0:01:48]} Nxe4+ {[%emt 0:00:22]} 18. Kg1 {[%emt 0:00:52]} Nxg5 {[%emt 0:00:32]} 19. Ne4 {[%emt 0:03:52]} Qe7 20. Nxg5 {[%emt 0:01:53]} Qxg5 {[%emt 0:02:04]} 21. Qb3 {[%emt 0:03:48]} Rd2 {[%emt 0:01:56]} 22. Qxb7 {[%emt 0:01:13]} Rff2 {[%emt 0:01:52]} 23. Qc8+ {[%emt 0:03:16]} Kf7 {[%emt 0:00:20]} 24. Qxc7+ {[%emt 0:01:32]} Kg6 {[%emt 0:00:14]} 25. Qc6 {[%emt 0:04:42]} Rxg2+ {[%emt 0:00:31]} 26. Qxg2 {[%emt 0:00:45]} Qxg2# 0-1

[Event "GER-ch Youth U10 2020"]
[Site "Willingen"]
[Date "2020.10.27"]
[Round "1.22"]
[White "Herrmann, Arthur"]
[Black "Nemitz, Alfred"]
[Result "0-1"]
[ECO "C42"]
[WhiteElo "1151"]
[BlackElo "1287"]
[Annotator "NA RC"]
[PlyCount "116"]
[EventDate "2020.10.27"]
[EventType "swiss"]
[EventRounds "7"]
[EventCountry "GER"]
[SourceTitle "playchess.com"]
[Source "ChessBase"]
[SourceQuality "1"]
[TimeControl "40/4500+30:900+30"]

1. e4 {[%emt 0:00:00]} e5 {[%emt 0:00:00]} 2. Nf3 {[%emt 0:00:00]} Nf6 {[%emt 0:00:01]} 3. Nxe5 {[%emt 0:00:00]} d6 {[%emt 0:00:15]} 4. Nf3 {[%emt 0:00:00]} Nxe4 {[%emt 0:00:17]} 5. d4 {[%emt 0:00:00]} d5 {[%emt 0:00:14]} 6. Bd3 {[%emt 0:00:07]} Nc6 {[%emt 0:00:11]} 7. O-O {[%emt 0:00:55]} Be7 {[%emt 0:00:09]} 8. c3 {[%emt 0:00:42]} O-O {[%emt 0:14:55]} 9. Re1 {[%emt 0:00:23]} Nf6 {[%emt 0:10:43]} 10. Bg5 {[%emt 0:04:36]} h6 {[%emt 0:03:07]} 11. Bh4 {[%emt 0:05:04]} Bg4 {[%emt 0:02:03]} 12. Nbd2 {[%emt 0:01:06]} Qd7 {[%emt 0:03:01]} 13. Qc2 {[%emt 0:03:22]} Rfe8 {[%emt 0:09:28]} 14. Bg3 {[%emt 0:08:25]} Bf8 {[%emt 0:09:20]} 15. h3 {[%emt 0:02:51]} Rxe1+ {[%emt 0:03:05]} 16. Rxe1 {[%emt 0:00:09]} Be6 {[%emt 0:01:52]} 17. Nf1 {[%emt 0:10:38]} a6 {[%emt 0:05:17]} 18. Ne3 {[%emt 0:01:33]} Bd6 {[%emt 0:03:01]} 19. Ne5 {[%emt 0:01:17]} Bxe5 {[%emt 0:00:59]} 20. dxe5 {[%emt 0:01:43]} Ne8 {[%emt 0:01:19]} 21. Nf5 {[%emt 0:01:48]} Ne7 {[%emt 0:00:40]} 22. Nxe7+ {[%emt 0:02:47]} Qxe7 {[%emt 0:00:15]} 23. f4 {[%emt 0:01:37]} c5 {[%emt 0:04:02]} 24. b3 {[%emt 0:03:39]} b5 {[%emt 0:01:38]} 25. f5 {[%emt 0:01:26]} Bc8 {[%emt 0:00:38]} 26. c4 {[%emt 0:04:32]} bxc4 {[%emt 0:00:48]} 27. bxc4 {[%emt 0:00:11]} d4 {[%emt 0:01:28]} 28. Be4 {[%emt 0:00:48]} Bb7 {[%emt 0:01:07]} 29. Bxb7 {[%emt 0:01:56]} Qxb7 {[%emt 0:00:08]} 30. Qe4 {[%emt 0:01:38]} Qxe4 {[%emt 0:00:09]} 31. Rxe4 {[%emt 0:00:06]} Rb8 {[%emt 0:00:42]} 32. Kf2 {[%emt 0:02:26]} Rb2+ {[%emt 0:00:12]} 33. Re2 {[%emt 0:00:09]} Rb4 {[%emt 0:00:44]} 34. Rc2 {[%emt 0:01:48]} Kf8 {[%emt 0:00:53]} 35. Ke2 {[%emt 0:00:39]} Ke7 {[%emt 0:00:33]} 36. Kd3 {[%emt 0:00:32]} Ra4 {[%emt 0:00:36]} 37. Rb2 {[%emt 0:01:19]} Ra3+ {[%emt 0:00:17]} 38. Rb3 {[%emt 0:00:56]} Rxa2 {[%emt 0:00:10]} 39. Rb7+ {[%emt 0:00:49]} Kf8 {[%emt 0:00:33]} 40. Bh4 {[%emt 0:00:37]} f6 {[%emt 0:01:07]} 41. exf6 {[%emt 0:16:19]} gxf6 {[%emt 0:15:59]} 42. g3 {[%emt 0:01:00]} Ra3+ {[%emt 0:00:43]} 43. Kd2 {[%emt 0:01:01]} Rf3 {[%emt 0:00:25]} 44. Ra7 {[%emt 0:01:04]} Rxf5 {[%emt 0:00:55]} 45. Rxa6 {[%emt 0:00:26]} Rf2+ {[%emt 0:02:50]} 46. Kd3 {[%emt 0:00:21]} Rf3+ {[%emt 0:00:24]} 47. Kd2 {[%emt 0:00:33]} Rc3 {[%emt 0:00:03]} 48. Ra4 {[%emt 0:00:29]} Nd6 {[%emt 0:00:21]} 49. Ra8+ {[%emt 0:00:43]} Kf7 {[%emt 0:00:18]} 50. Ra7+ {[%emt 0:00:37]} Kg6 {[%emt 0:00:54]} 51. Ra6 {[%emt 0:01:10]} Nxc4+ {[%emt 0:00:04]} 52. Kd1 {[%emt 0:01:11]} Rf3 {[%emt 0:00:11]} 53. Ke2 {[%emt 0:00:35]} Rf5 {[%emt 0:00:17]} 54. Kd3 {[%emt 0:00:54]} Ne5+ {[%emt 0:00:14]} 55. Ke4 {[%emt 0:00:38]} d3 {[%emt 0:00:23]} 56. Rd6 {[%emt 0:01:29]} c4 {[%emt 0:00:20]} 57. Rd4 {[%emt 0:01:09]} c3 {[%emt 0:00:31]} 58. Ke3 {[%emt 0:00:40]} c2 {[%emt 0:00:21]} 0-1